[Event "Titled Tuesday Blitz January 03 Early 2023"]
[White "Blanco Acevedo, Cristobal Jose"]
[Black "Goltsev, Dmitry"]
[WhiteFideId "3900525"]
[BlackFideId "24176710"]
[WhiteElo "2310"]
[BlackElo "2269"]
[Result "0-1"]
[Round "06"]
[TimeControl "180+2"]
[Date "2023.01.03"]
[WhiteClock "0:00:09"]
[BlackClock "0:00:04"]

1. e4 {[%clk 0:02:59]}  e6 {[%clk 0:02:59]} 2. d4 {[%clk 0:02:58]}  d5 {[%clk 0:03:00]} 3. Nc3 {[%clk 0:02:57]}  c5 {[%clk 0:03:00]} 4. exd5 {[%clk 0:02:52]}  exd5 {[%clk 0:03:01]} 5. Nf3 {[%clk 0:02:50]}  Nf6 {[%clk 0:03:00]} 6. Bb5+ {[%clk 0:02:49]}  Nc6 {[%clk 0:02:59]} 7. O-O {[%clk 0:02:49]}  Be7 {[%clk 0:02:59]} 8. Ne5 {[%clk 0:02:49]}  Bd7 {[%clk 0:02:55]} 9. Nxd7 {[%clk 0:02:45]}  Qxd7 {[%clk 0:02:54]} 10. dxc5 {[%clk 0:02:38]}  O-O {[%clk 0:02:51]} 11. b4 {[%clk 0:02:34]}  d4 {[%clk 0:02:51]} 12. Ne2 {[%clk 0:02:30]}  a5 {[%clk 0:02:31]} 13. Bb2 {[%clk 0:02:04]}  axb4 {[%clk 0:02:26]} 14. Nxd4 {[%clk 0:01:58]}  Qc8 {[%clk 0:01:59]} 15. Nxc6 {[%clk 0:01:51]}  bxc6 {[%clk 0:02:00]} 16. Bd3 {[%clk 0:01:51]}  Rd8 {[%clk 0:01:45]} 17. Qf3 {[%clk 0:01:50]}  Ra5 {[%clk 0:01:32]} 18. Rfe1 {[%clk 0:01:42]}  Qd7 {[%clk 0:01:26]} 19. Rad1 {[%clk 0:01:37]}  Nd5 {[%clk 0:01:23]} 20. c4 {[%clk 0:01:18]}  bxc3 {[%clk 0:01:21]} 21. Bxc3 {[%clk 0:01:18]}  Rxc5 {[%clk 0:01:12]} 22. Bb4 {[%clk 0:01:17]}  Nxb4 {[%clk 0:00:53]} 23. Bxh7+ {[%clk 0:01:16]}  Kf8 {[%clk 0:00:54]} 24. Rxd7 {[%clk 0:01:08]}  Rxd7 {[%clk 0:00:55]} 25. Bg6 {[%clk 0:00:59]}  Bf6 {[%clk 0:00:49]} 26. Qh3 {[%clk 0:00:52]}  Re5 {[%clk 0:00:41]} 27. Be4 {[%clk 0:00:32]}  Rd2 {[%clk 0:00:24]} 28. f3 {[%clk 0:00:25]}  Nd3 {[%clk 0:00:18]} 29. Rb1 {[%clk 0:00:24]}  Rxe4 {[%clk 0:00:13]} 30. Qh8+ {[%clk 0:00:17]}  Ke7 {[%clk 0:00:14]} 31. Rb7+ {[%clk 0:00:16]}  Kd6 {[%clk 0:00:09]} 32. Qf8+ {[%clk 0:00:16]}  Re7 {[%clk 0:00:06]} 33. Rxe7 {[%clk 0:00:15]}  Bxe7 {[%clk 0:00:06]} 34. Qb8+ {[%clk 0:00:12]}  Kd5 {[%clk 0:00:06]} 35. g3 {[%clk 0:00:11]}  Bc5+ {[%clk 0:00:06]} 36. Kh1 {[%clk 0:00:12]}  Nf2+ {[%clk 0:00:03]} 37. Kg2 {[%clk 0:00:12]}  Nd1+ {[%clk 0:00:02]} 38. Kh3 {[%clk 0:00:12]}  Nc3 {[%clk 0:00:01]} 39. Qd8+ {[%clk 0:00:12]}  Bd6 {[%clk 0:00:02]} 40. Qg5+ {[%clk 0:00:13]}  Be5 {[%clk 0:00:01]} 41. Qxd2+ {[%clk 0:00:13]}  Kc4 {[%clk 0:00:02]} 42. Qc2 {[%clk 0:00:13]}  Bd4 {[%clk 0:00:03]} 43. Qb3+ {[%clk 0:00:13]}  Kd3 {[%clk 0:00:03]} 44. Qxf7 {[%clk 0:00:14]}  c5 {[%clk 0:00:04]} 45. Qf5+ {[%clk 0:00:14]}  Kd2 {[%clk 0:00:04]} 46. Qg5+ {[%clk 0:00:13]}  Kd3 {[%clk 0:00:04]} 47. Qf5+ {[%clk 0:00:12]}  Kd2 {[%clk 0:00:04]} 48. Qd7 {[%clk 0:00:09]}  Nd1 {[%clk 0:00:05]} 49. a4 {[%clk 0:00:09]}  Ke3 {[%clk 0:00:04]} 50. a5 {[%clk 0:00:08]}  g5 {[%clk 0:00:03]} 51. Kg4 {[%clk 0:00:06]}  c4 {[%clk 0:00:03]} 52. a6 {[%clk 0:00:06]}  c3 {[%clk 0:00:02]} 53. Qc6 {[%clk 0:00:06]}  Kd2 {[%clk 0:00:02]} 54. Qd5 {[%clk 0:00:06]}  Ne3+ {[%clk 0:00:01]} 55. Kxg5 {[%clk 0:00:06]}  Nxd5 {[%clk 0:00:02]} 56. f4 {[%clk 0:00:06]}  c2 {[%clk 0:00:03]} 57. f5 {[%clk 0:00:07]}  c1=Q {[%clk 0:00:03]} 58. Kh5 {[%clk 0:00:08]}  Qc7 {[%clk 0:00:03]} 59. g4 {[%clk 0:00:08]}  Qg7 {[%clk 0:00:04]} 60. h4 {[%clk 0:00:09]}  Nf4# {[%clk 0:00:04]} 0-1


[Site "https://www.chess.com"]

[Event "Titled Tuesday Blitz January 03 Early 2023"]
[White "HSH1987"]
[Black "Krstic, Milos"]
[BlackFideId "954888"]
[WhiteElo "2675"]
[BlackElo "2183"]
[Result "1-0"]
[Round "06"]
[TimeControl "180+2"]
[Date "2023.01.03"]
[WhiteClock "0:00:34"]
[BlackClock "0:00:06"]

1. Nf3 {[%clk 0:03:00]}  d5 {[%clk 0:02:59]} 2. g3 {[%clk 0:03:01]}  Nf6 {[%clk 0:02:59]} 3. Bg2 {[%clk 0:03:01]}  Bf5 {[%clk 0:02:58]} 4. O-O {[%clk 0:03:02]}  c6 {[%clk 0:02:58]} 5. d3 {[%clk 0:03:03]}  h6 {[%clk 0:02:59]} 6. c4 {[%clk 0:03:03]}  e6 {[%clk 0:02:59]} 7. Be3 {[%clk 0:03:00]}  Nbd7 {[%clk 0:02:55]} 8. Qb3 {[%clk 0:02:59]}  Qc8 {[%clk 0:02:47]} 9. Nc3 {[%clk 0:02:57]}  Bh7 {[%clk 0:02:44]} 10. Rac1 {[%clk 0:02:56]}  dxc4 {[%clk 0:02:42]} 11. Qxc4 {[%clk 0:02:53]}  Be7 {[%clk 0:02:41]} 12. b4 {[%clk 0:02:50]}  O-O {[%clk 0:02:34]} 13. b5 {[%clk 0:02:48]}  c5 {[%clk 0:02:26]} 14. Nd2 {[%clk 0:02:32]}  Rb8 {[%clk 0:02:23]} 15. a4 {[%clk 0:02:29]}  b6 {[%clk 0:02:21]} 16. a5 {[%clk 0:02:29]}  bxa5 {[%clk 0:02:18]} 17. Qa4 {[%clk 0:02:27]}  Qc7 {[%clk 0:02:08]} 18. Nc4 {[%clk 0:02:22]}  Ng4 {[%clk 0:02:01]} 19. Bf4 {[%clk 0:02:19]}  e5 {[%clk 0:01:59]} 20. Bd2 {[%clk 0:02:15]}  Nb6 {[%clk 0:01:45]} 21. Qxa5 {[%clk 0:02:10]}  Qd7 {[%clk 0:01:45]} 22. Qa2 {[%clk 0:01:48]}  Nxc4 {[%clk 0:01:34]} 23. dxc4 {[%clk 0:01:45]}  Nf6 {[%clk 0:01:27]} 24. Rfd1 {[%clk 0:01:40]}  Qc7 {[%clk 0:01:20]} 25. Ra1 {[%clk 0:01:36]}  Rfe8 {[%clk 0:00:57]} 26. Qxa7 {[%clk 0:01:33]}  Qc8 {[%clk 0:00:57]} 27. b6 {[%clk 0:01:21]}  e4 {[%clk 0:00:57]} 28. Qc7 {[%clk 0:01:04]}  Qe6 {[%clk 0:00:50]} 29. b7 {[%clk 0:00:53]}  Bd6 {[%clk 0:00:11]} 30. Qc6 {[%clk 0:00:52]}  Bf8 {[%clk 0:00:08]} 31. Qxe6 {[%clk 0:00:49]}  Rxe6 {[%clk 0:00:09]} 32. Rdb1 {[%clk 0:00:44]}  Bd6 {[%clk 0:00:09]} 33. Be3 {[%clk 0:00:41]}  Be5 {[%clk 0:00:08]} 34. Ra8 {[%clk 0:00:39]}  Ree8 {[%clk 0:00:07]} 35. Rxb8 {[%clk 0:00:37]}  Rxb8 {[%clk 0:00:08]} 36. Na4 {[%clk 0:00:35]}  Bd4 {[%clk 0:00:07]} 37. Nxc5 {[%clk 0:00:33]}  Bxc5 {[%clk 0:00:06]} 38. Bxc5 {[%clk 0:00:34]} 1-0


[Site "https://www.chess.com"]

[Event "Titled Tuesday Blitz January 03 Early 2023"]
[White "Csonka, Balazs"]
[Black "Mikhalsky, Vladimir"]
[WhiteFideId "742910"]
[BlackFideId "14144352"]
[WhiteElo "2496"]
[BlackElo "2219"]
[Result "1-0"]
[Round "06"]
[TimeControl "180+2"]
[Date "2023.01.03"]
[WhiteClock "0:00:04"]
[BlackClock "0:00:08"]

1. c4 {[%clk 0:03:00]}  c5 {[%clk 0:02:56]} 2. Nf3 {[%clk 0:02:58]}  Nf6 {[%clk 0:02:56]} 3. Nc3 {[%clk 0:02:58]}  d5 {[%clk 0:02:56]} 4. cxd5 {[%clk 0:02:57]}  Nxd5 {[%clk 0:02:56]} 5. e4 {[%clk 0:02:57]}  Nb4 {[%clk 0:02:56]} 6. Bc4 {[%clk 0:02:57]}  Nd3+ {[%clk 0:02:53]} 7. Ke2 {[%clk 0:02:57]}  Nf4+ {[%clk 0:02:54]} 8. Kf1 {[%clk 0:02:58]}  Ne6 {[%clk 0:02:52]} 9. b4 {[%clk 0:02:47]}  cxb4 {[%clk 0:02:45]} 10. Ne2 {[%clk 0:02:33]}  g6 {[%clk 0:02:39]} 11. Bb2 {[%clk 0:02:30]}  Bg7 {[%clk 0:02:26]} 12. Bxe6 {[%clk 0:02:27]}  Bxb2 {[%clk 0:02:25]} 13. Bxf7+ {[%clk 0:02:21]}  Kf8 {[%clk 0:02:24]} 14. Rb1 {[%clk 0:02:18]}  Bg7 {[%clk 0:02:14]} 15. Bd5 {[%clk 0:02:04]}  Nc6 {[%clk 0:02:04]} 16. d4 {[%clk 0:01:58]}  Bg4 {[%clk 0:01:52]} 17. Rb3 {[%clk 0:01:38]}  a5 {[%clk 0:01:30]} 18. h3 {[%clk 0:01:30]}  a4 {[%clk 0:01:16]} 19. hxg4 {[%clk 0:00:58]}  axb3 {[%clk 0:01:16]} 20. axb3 {[%clk 0:00:45]}  e5 {[%clk 0:00:57]} 21. dxe5 {[%clk 0:00:35]}  Nxe5 {[%clk 0:00:56]} 22. Ned4 {[%clk 0:00:20]}  Ra6 {[%clk 0:00:28]} 23. Rh3 {[%clk 0:00:15]}  h6 {[%clk 0:00:18]} 24. Nxe5 {[%clk 0:00:14]}  Bxe5 {[%clk 0:00:18]} 25. Rf3+ {[%clk 0:00:15]}  Ke8 {[%clk 0:00:15]} 26. Rd3 {[%clk 0:00:06]}  Qf6 {[%clk 0:00:14]} 27. Nc2 {[%clk 0:00:04]}  Ke7 {[%clk 0:00:12]} 28. Bc4 {[%clk 0:00:04]}  Rd6 {[%clk 0:00:12]} 29. Nxb4 {[%clk 0:00:04]}  Rhd8 {[%clk 0:00:10]} 30. Nd5+ {[%clk 0:00:04]}  Rxd5 {[%clk 0:00:11]} 31. Rxd5 {[%clk 0:00:03]}  Rxd5 {[%clk 0:00:09]} 32. Qxd5 {[%clk 0:00:04]}  Bd4 {[%clk 0:00:09]} 33. Qxb7+ {[%clk 0:00:04]}  Kf8 {[%clk 0:00:08]} 34. Qc8+ {[%clk 0:00:04]}  Kg7 {[%clk 0:00:08]} 35. Qg8# {[%clk 0:00:04]} 1-0


[Site "https://www.chess.com"]

[Event "Titled Tuesday Blitz January 03 Early 2023"]
[White "Vysochin, Spartak"]
[Black "Averjanov, Alexey"]
[WhiteFideId "14103516"]
[BlackFideId "14109867"]
[WhiteElo "2512"]
[BlackElo "2399"]
[Result "0-1"]
[Round "06"]
[TimeControl "180+2"]
[Date "2023.01.03"]
[WhiteClock "0:00:03"]
[BlackClock "0:00:12"]

1. e4 {[%clk 0:03:00]}  c6 {[%clk 0:02:59]} 2. d4 {[%clk 0:03:00]}  d5 {[%clk 0:03:00]} 3. exd5 {[%clk 0:02:59]}  cxd5 {[%clk 0:03:01]} 4. Bd3 {[%clk 0:02:59]}  Nc6 {[%clk 0:03:02]} 5. c3 {[%clk 0:02:59]}  Nf6 {[%clk 0:03:00]} 6. h3 {[%clk 0:02:59]}  g6 {[%clk 0:03:00]} 7. Bf4 {[%clk 0:02:57]}  Bf5 {[%clk 0:03:00]} 8. Be2 {[%clk 0:02:57]}  h5 {[%clk 0:02:55]} 9. Nf3 {[%clk 0:02:52]}  Bg7 {[%clk 0:02:53]} 10. O-O {[%clk 0:02:52]}  O-O {[%clk 0:02:52]} 11. Nbd2 {[%clk 0:02:52]}  Ne4 {[%clk 0:02:51]} 12. Re1 {[%clk 0:02:48]}  Qd7 {[%clk 0:02:49]} 13. Bb5 {[%clk 0:02:36]}  a6 {[%clk 0:02:48]} 14. Bxc6 {[%clk 0:02:32]}  Qxc6 {[%clk 0:02:48]} 15. Nxe4 {[%clk 0:02:31]}  Bxe4 {[%clk 0:02:47]} 16. Ng5 {[%clk 0:02:31]}  f6 {[%clk 0:02:23]} 17. Nxe4 {[%clk 0:02:26]}  dxe4 {[%clk 0:02:24]} 18. d5 {[%clk 0:02:23]}  Qc4 {[%clk 0:02:20]} 19. b3 {[%clk 0:02:08]}  Qxc3 {[%clk 0:02:19]} 20. Rc1 {[%clk 0:02:02]}  Qa5 {[%clk 0:01:47]} 21. Rxe4 {[%clk 0:01:59]}  Rad8 {[%clk 0:01:47]} 22. Rxe7 {[%clk 0:01:53]}  Rxd5 {[%clk 0:01:46]} 23. Qc2 {[%clk 0:01:47]}  Rf7 {[%clk 0:01:39]} 24. Qc8+ {[%clk 0:01:43]}  Bf8 {[%clk 0:01:39]} 25. Rxf7 {[%clk 0:01:39]}  Kxf7 {[%clk 0:01:40]} 26. Qxb7+ {[%clk 0:01:30]}  Kg8 {[%clk 0:01:37]} 27. Rc8 {[%clk 0:01:05]}  Rd1+ {[%clk 0:01:17]} 28. Kh2 {[%clk 0:01:02]}  Qe1 {[%clk 0:01:09]} 29. Qxa6 {[%clk 0:00:36]}  h4 {[%clk 0:00:33]} 30. Qc4+ {[%clk 0:00:22]}  Kg7 {[%clk 0:00:31]} 31. Bh6+ {[%clk 0:00:13]}  Kxh6 {[%clk 0:00:28]} 32. Qxh4+ {[%clk 0:00:13]}  Kg7 {[%clk 0:00:29]} 33. Qc4 {[%clk 0:00:12]}  Qxf2 {[%clk 0:00:26]} 34. Qc7+ {[%clk 0:00:07]}  Kh6 {[%clk 0:00:22]} 35. Rxf8 {[%clk 0:00:07]}  Qg1+ {[%clk 0:00:21]} 36. Kg3 {[%clk 0:00:07]}  Rd3+ {[%clk 0:00:19]} 37. Kh4 {[%clk 0:00:06]}  Qf2+ {[%clk 0:00:19]} 38. g3 {[%clk 0:00:03]}  g5+ {[%clk 0:00:11]} 39. Kg4 {[%clk 0:00:03]}  Qf3# {[%clk 0:00:12]} 0-1


[Site "https://www.chess.com"]

[Event "Titled Tuesday Blitz January 03 Early 2023"]
[White "Ansh M Shah"]
[Black "Aloma Vidal, Robert"]
[WhiteFideId "25033379"]
[BlackFideId "2260409"]
[WhiteElo "2171"]
[BlackElo "2442"]
[Result "1-0"]
[Round "06"]
[TimeControl "180+2"]
[Date "2023.01.03"]
[WhiteClock "0:01:35"]
[BlackClock "0:00:24"]

1. d4 {[%clk 0:03:00]}  d5 {[%clk 0:02:58]} 2. c4 {[%clk 0:02:59]}  c6 {[%clk 0:02:58]} 3. cxd5 {[%clk 0:02:58]}  cxd5 {[%clk 0:02:58]} 4. Nc3 {[%clk 0:02:59]}  e6 {[%clk 0:02:56]} 5. Bf4 {[%clk 0:02:59]}  Bd6 {[%clk 0:02:56]} 6. Bxd6 {[%clk 0:02:58]}  Qxd6 {[%clk 0:02:57]} 7. e3 {[%clk 0:02:59]}  Ne7 {[%clk 0:02:56]} 8. f4 {[%clk 0:02:59]}  O-O {[%clk 0:02:54]} 9. Nf3 {[%clk 0:02:59]}  f6 {[%clk 0:02:52]} 10. Bd3 {[%clk 0:03:00]}  Nbc6 {[%clk 0:02:51]} 11. O-O {[%clk 0:02:58]}  Bd7 {[%clk 0:02:49]} 12. Na4 {[%clk 0:02:44]}  Be8 {[%clk 0:02:40]} 13. Nc5 {[%clk 0:02:34]}  b6 {[%clk 0:02:38]} 14. Na4 {[%clk 0:02:33]}  Nb4 {[%clk 0:02:25]} 15. Bb1 {[%clk 0:02:24]}  Rc8 {[%clk 0:02:19]} 16. a3 {[%clk 0:02:23]}  Nbc6 {[%clk 0:02:16]} 17. Nc3 {[%clk 0:02:22]}  Na5 {[%clk 0:02:13]} 18. Bd3 {[%clk 0:02:21]}  Nc4 {[%clk 0:02:11]} 19. Bxc4 {[%clk 0:02:21]}  Rxc4 {[%clk 0:02:10]} 20. Rc1 {[%clk 0:02:16]}  a6 {[%clk 0:01:58]} 21. Qe2 {[%clk 0:02:13]}  b5 {[%clk 0:01:48]} 22. Nd2 {[%clk 0:02:07]}  Rc6 {[%clk 0:01:40]} 23. Nb3 {[%clk 0:02:07]}  Bg6 {[%clk 0:01:27]} 24. Nc5 {[%clk 0:02:05]}  Rcc8 {[%clk 0:01:21]} 25. b4 {[%clk 0:02:05]}  e5 {[%clk 0:01:21]} 26. fxe5 {[%clk 0:02:05]}  fxe5 {[%clk 0:01:21]} 27. Rxf8+ {[%clk 0:01:52]}  Rxf8 {[%clk 0:01:22]} 28. dxe5 {[%clk 0:01:52]}  Qc6 {[%clk 0:00:57]} 29. Rf1 {[%clk 0:01:49]}  Rxf1+ {[%clk 0:00:51]} 30. Qxf1 {[%clk 0:01:50]}  h6 {[%clk 0:00:47]} 31. Qf4 {[%clk 0:01:43]}  Bf7 {[%clk 0:00:27]} 32. Ne2 {[%clk 0:01:39]}  Ng6 {[%clk 0:00:25]} 33. Qf5 {[%clk 0:01:37]}  Qe8 {[%clk 0:00:24]} 34. e6 {[%clk 0:01:35]} 1-0


[Site "https://www.chess.com"]

[Event "Titled Tuesday Blitz January 03 Early 2023"]
[White "Torres Dominguez, David"]
[Black "Levitskiy, Andrey"]
[WhiteFideId "2220857"]
[BlackFideId "14132885"]
[WhiteElo "1994"]
[BlackElo "2304"]
[Result "1-0"]
[Round "06"]
[TimeControl "180+2"]
[Date "2023.01.03"]
[WhiteClock "0:00:04"]
[BlackClock "0:00:12"]

1. e4 {[%clk 0:02:48]}  e6 {[%clk 0:02:59]} 2. d4 {[%clk 0:02:48]}  d5 {[%clk 0:03:00]} 3. exd5 {[%clk 0:02:46]}  exd5 {[%clk 0:03:01]} 4. Bd3 {[%clk 0:02:46]}  Bd6 {[%clk 0:03:00]} 5. Qf3 {[%clk 0:02:45]}  Ne7 {[%clk 0:02:58]} 6. Bf4 {[%clk 0:02:44]}  Nbc6 {[%clk 0:02:56]} 7. Ne2 {[%clk 0:02:43]}  Nb4 {[%clk 0:02:50]} 8. Nbc3 {[%clk 0:02:39]}  Nxd3+ {[%clk 0:02:45]} 9. Qxd3 {[%clk 0:02:38]}  c6 {[%clk 0:02:45]} 10. Bxd6 {[%clk 0:02:34]}  Qxd6 {[%clk 0:02:46]} 11. Qg3 {[%clk 0:02:30]}  Qxg3 {[%clk 0:02:40]} 12. Nxg3 {[%clk 0:02:28]}  Ng6 {[%clk 0:02:27]} 13. O-O {[%clk 0:02:21]}  O-O {[%clk 0:02:24]} 14. Rfe1 {[%clk 0:02:20]}  Bd7 {[%clk 0:02:21]} 15. Nce2 {[%clk 0:02:05]}  b6 {[%clk 0:02:10]} 16. f3 {[%clk 0:02:01]}  f5 {[%clk 0:02:06]} 17. f4 {[%clk 0:01:56]}  Rae8 {[%clk 0:02:06]} 18. Kf2 {[%clk 0:01:51]}  Re7 {[%clk 0:02:04]} 19. Nf1 {[%clk 0:01:46]}  Rfe8 {[%clk 0:01:59]} 20. g3 {[%clk 0:01:45]}  c5 {[%clk 0:01:47]} 21. Nd2 {[%clk 0:01:41]}  Bb5 {[%clk 0:01:35]} 22. Ng1 {[%clk 0:01:37]}  cxd4 {[%clk 0:01:26]} 23. Rxe7 {[%clk 0:01:36]}  Nxe7 {[%clk 0:01:23]} 24. Ngf3 {[%clk 0:01:33]}  Nc6 {[%clk 0:01:23]} 25. Re1 {[%clk 0:01:25]}  Rxe1 {[%clk 0:01:17]} 26. Kxe1 {[%clk 0:01:25]}  a5 {[%clk 0:01:09]} 27. Nb3 {[%clk 0:01:20]}  d3 {[%clk 0:01:09]} 28. c3 {[%clk 0:01:20]}  Bc4 {[%clk 0:01:08]} 29. Nc1 {[%clk 0:01:16]}  a4 {[%clk 0:00:48]} 30. Kd2 {[%clk 0:01:11]}  Kf7 {[%clk 0:00:47]} 31. b3 {[%clk 0:01:11]}  axb3 {[%clk 0:00:47]} 32. axb3 {[%clk 0:01:08]}  Ba6 {[%clk 0:00:48]} 33. Ng5+ {[%clk 0:01:01]}  Kg6 {[%clk 0:00:44]} 34. Ne6 {[%clk 0:00:56]}  Na5 {[%clk 0:00:27]} 35. Nc7 {[%clk 0:00:51]}  Bb7 {[%clk 0:00:26]} 36. Kxd3 {[%clk 0:00:48]}  Kh5 {[%clk 0:00:19]} 37. h3 {[%clk 0:00:37]}  g5 {[%clk 0:00:19]} 38. fxg5 {[%clk 0:00:32]}  Kxg5 {[%clk 0:00:20]} 39. b4 {[%clk 0:00:32]}  Nc4 {[%clk 0:00:18]} 40. Ne2 {[%clk 0:00:26]}  Ne5+ {[%clk 0:00:16]} 41. Ke3 {[%clk 0:00:20]}  Ng6 {[%clk 0:00:04]} 42. Kd4 {[%clk 0:00:11]}  f4 {[%clk 0:00:04]} 43. gxf4+ {[%clk 0:00:11]}  Nxf4 {[%clk 0:00:04]} 44. Nxf4 {[%clk 0:00:10]}  Kxf4 {[%clk 0:00:05]} 45. Nxd5+ {[%clk 0:00:10]}  Kg3 {[%clk 0:00:06]} 46. Nxb6 {[%clk 0:00:08]}  Kxh3 {[%clk 0:00:06]} 47. Nd7 {[%clk 0:00:08]}  h5 {[%clk 0:00:06]} 48. Ne5 {[%clk 0:00:06]}  h4 {[%clk 0:00:07]} 49. Ng6 {[%clk 0:00:06]}  Kg3 {[%clk 0:00:06]} 50. Nxh4 {[%clk 0:00:05]}  Kxh4 {[%clk 0:00:07]} 51. Kc5 {[%clk 0:00:05]}  Kg5 {[%clk 0:00:08]} 52. Kb6 {[%clk 0:00:05]}  Bd5 {[%clk 0:00:08]} 53. Kc5 {[%clk 0:00:03]}  Bf3 {[%clk 0:00:08]} 54. b5 {[%clk 0:00:04]}  Kf6 {[%clk 0:00:09]} 55. Kd6 {[%clk 0:00:04]}  Kf7 {[%clk 0:00:07]} 56. c4 {[%clk 0:00:03]}  Ke8 {[%clk 0:00:07]} 57. Kc7 {[%clk 0:00:03]}  Be2 {[%clk 0:00:03]} 58. b6 {[%clk 0:00:02]}  Bf3 {[%clk 0:00:02]} 59. c5 {[%clk 0:00:02]}  Ke7 {[%clk 0:00:02]} 60. c6 {[%clk 0:00:02]}  Bd5 {[%clk 0:00:02]} 61. b7 {[%clk 0:00:01]}  Bxc6 {[%clk 0:00:03]} 62. Kxc6 {[%clk 0:00:01]}  Kd8 {[%clk 0:00:04]} 63. b8=Q+ {[%clk 0:00:01]}  Ke7 {[%clk 0:00:05]} 64. Qd6+ {[%clk 0:00:02]}  Kf7 {[%clk 0:00:06]} 65. Kd5 {[%clk 0:00:02]}  Kg7 {[%clk 0:00:07]} 66. Qe6 {[%clk 0:00:03]}  Kf8 {[%clk 0:00:07]} 67. Ke5 {[%clk 0:00:03]}  Kg7 {[%clk 0:00:08]} 68. Qf6+ {[%clk 0:00:04]}  Kh7 {[%clk 0:00:08]} 69. Qe7+ {[%clk 0:00:04]}  Kg8 {[%clk 0:00:09]} 70. Qg5+ {[%clk 0:00:04]}  Kh8 {[%clk 0:00:10]} 71. Qg4 {[%clk 0:00:04]}  Kh7 {[%clk 0:00:11]} 72. Kf6 {[%clk 0:00:04]}  Kh8 {[%clk 0:00:12]} 73. Qg7# {[%clk 0:00:04]} 1-0


[Site "https://www.chess.com"]

[Event "Titled Tuesday Blitz January 03 Early 2023"]
[White "Blokhin, Sofia"]
[Black "Costachi, Mihnea"]
[WhiteFideId "4508190"]
[BlackFideId "1217518"]
[WhiteElo "2062"]
[BlackElo "2476"]
[Result "0-1"]
[Round "06"]
[TimeControl "180+2"]
[Date "2023.01.03"]
[WhiteClock "0:00:06"]
[BlackClock "0:01:31"]

1. d4 {[%clk 0:03:00]}  e6 {[%clk 0:02:58]} 2. c4 {[%clk 0:02:59]}  Nf6 {[%clk 0:02:55]} 3. Nc3 {[%clk 0:02:57]}  Bb4 {[%clk 0:02:54]} 4. f3 {[%clk 0:02:58]}  c5 {[%clk 0:02:51]} 5. a3 {[%clk 0:02:56]}  Bxc3+ {[%clk 0:02:50]} 6. bxc3 {[%clk 0:02:56]}  O-O {[%clk 0:02:50]} 7. Nh3 {[%clk 0:02:52]}  b6 {[%clk 0:02:46]} 8. Bg5 {[%clk 0:02:44]}  h6 {[%clk 0:02:45]} 9. Bh4 {[%clk 0:02:42]}  Nc6 {[%clk 0:02:43]} 10. e4 {[%clk 0:02:37]}  d6 {[%clk 0:02:38]} 11. Be2 {[%clk 0:02:32]}  Ba6 {[%clk 0:02:36]} 12. Qa4 {[%clk 0:02:23]}  Bb7 {[%clk 0:02:29]} 13. Rd1 {[%clk 0:02:15]}  e5 {[%clk 0:02:18]} 14. d5 {[%clk 0:01:54]}  Na5 {[%clk 0:02:15]} 15. O-O {[%clk 0:01:46]}  Qd7 {[%clk 0:02:09]} 16. Qc2 {[%clk 0:01:35]}  Nh7 {[%clk 0:02:04]} 17. f4 {[%clk 0:01:34]}  exf4 {[%clk 0:02:02]} 18. Nxf4 {[%clk 0:00:43]}  g5 {[%clk 0:02:01]} 19. Nh5 {[%clk 0:00:40]}  gxh4 {[%clk 0:02:02]} 20. Qd2 {[%clk 0:00:36]}  Qe7 {[%clk 0:01:55]} 21. Qxh6 {[%clk 0:00:33]}  f6 {[%clk 0:01:48]} 22. Bg4 {[%clk 0:00:25]}  Bc8 {[%clk 0:01:48]} 23. Bf5 {[%clk 0:00:18]}  Bxf5 {[%clk 0:01:46]} 24. Rxf5 {[%clk 0:00:18]}  Nxc4 {[%clk 0:01:47]} 25. Rd3 {[%clk 0:00:14]}  Ne5 {[%clk 0:01:46]} 26. Rh3 {[%clk 0:00:08]}  Rf7 {[%clk 0:01:43]} 27. Rxh4 {[%clk 0:00:06]}  Raf8 {[%clk 0:01:31]} 0-1


[Site "https://www.chess.com"]

[Event "Titled Tuesday Blitz January 03 Early 2023"]
[White "Arabidze, Meri"]
[Black "ArchibaldCerveza29"]
[WhiteFideId "13604040"]
[WhiteElo "2441"]
[BlackElo "2510"]
[Result "1-0"]
[Round "06"]
[TimeControl "180+2"]
[Date "2023.01.03"]
[WhiteClock "0:00:06"]
[BlackClock "0:00:02"]

1. b3 {[%clk 0:03:00]}  e5 {[%clk 0:02:59]} 2. Bb2 {[%clk 0:03:00]}  Nc6 {[%clk 0:03:00]} 3. Nf3 {[%clk 0:02:58]}  e4 {[%clk 0:02:47]} 4. Ne5 {[%clk 0:02:58]}  Nf6 {[%clk 0:02:44]} 5. e3 {[%clk 0:02:56]}  Bd6 {[%clk 0:02:42]} 6. Nc4 {[%clk 0:02:55]}  Be7 {[%clk 0:02:38]} 7. d3 {[%clk 0:02:53]}  d5 {[%clk 0:02:37]} 8. Ne5 {[%clk 0:02:49]}  Bd6 {[%clk 0:02:32]} 9. Nxc6 {[%clk 0:02:47]}  bxc6 {[%clk 0:02:33]} 10. dxe4 {[%clk 0:02:47]}  Nxe4 {[%clk 0:02:33]} 11. g3 {[%clk 0:02:34]}  O-O {[%clk 0:02:25]} 12. Bg2 {[%clk 0:02:34]}  a5 {[%clk 0:02:21]} 13. O-O {[%clk 0:02:33]}  f5 {[%clk 0:02:20]} 14. Nd2 {[%clk 0:02:30]}  a4 {[%clk 0:02:16]} 15. Nxe4 {[%clk 0:02:13]}  fxe4 {[%clk 0:02:17]} 16. Qd4 {[%clk 0:02:12]}  Qe7 {[%clk 0:02:15]} 17. c4 {[%clk 0:02:12]}  Rf5 {[%clk 0:01:44]} 18. Rac1 {[%clk 0:01:58]}  axb3 {[%clk 0:01:35]} 19. axb3 {[%clk 0:01:58]}  Ra2 {[%clk 0:01:07]} 20. Ra1 {[%clk 0:01:57]}  Be5 {[%clk 0:00:56]} 21. Qxe5 {[%clk 0:01:52]}  Rxe5 {[%clk 0:00:55]} 22. Rxa2 {[%clk 0:01:52]}  Rf5 {[%clk 0:00:53]} 23. Ra8 {[%clk 0:01:52]}  Rf8 {[%clk 0:00:51]} 24. Ba3 {[%clk 0:01:52]}  c5 {[%clk 0:00:51]} 25. cxd5 {[%clk 0:01:51]}  Bf5 {[%clk 0:00:44]} 26. Rxf8+ {[%clk 0:01:52]}  Qxf8 {[%clk 0:00:40]} 27. Rc1 {[%clk 0:01:52]}  Qb8 {[%clk 0:00:39]} 28. Bxc5 {[%clk 0:01:42]}  Qxb3 {[%clk 0:00:37]} 29. Bf1 {[%clk 0:01:43]}  Qb2 {[%clk 0:00:31]} 30. Rc4 {[%clk 0:01:28]}  Qb1 {[%clk 0:00:23]} 31. Rb4 {[%clk 0:01:18]}  Qc1 {[%clk 0:00:22]} 32. Rc4 {[%clk 0:00:59]}  Qd1 {[%clk 0:00:15]} 33. Ba3 {[%clk 0:00:51]}  Bg4 {[%clk 0:00:12]} 34. Rc1 {[%clk 0:00:49]}  Qb3 {[%clk 0:00:13]} 35. Be7 {[%clk 0:00:44]}  Qb2 {[%clk 0:00:08]} 36. Rxc7 {[%clk 0:00:43]}  Qa1 {[%clk 0:00:08]} 37. Kg2 {[%clk 0:00:11]}  Bf3+ {[%clk 0:00:06]} 38. Kh3 {[%clk 0:00:11]}  Qxf1+ {[%clk 0:00:06]} 39. Kh4 {[%clk 0:00:12]}  Qxf2 {[%clk 0:00:04]} 40. h3 {[%clk 0:00:11]}  Qxe3 {[%clk 0:00:04]} 41. Bg5 {[%clk 0:00:11]}  Qd4 {[%clk 0:00:03]} 42. Rc8+ {[%clk 0:00:10]}  Kf7 {[%clk 0:00:04]} 43. Rc7+ {[%clk 0:00:07]}  Ke8 {[%clk 0:00:04]} 44. Rc8+ {[%clk 0:00:07]}  Kd7 {[%clk 0:00:05]} 45. Rd8+ {[%clk 0:00:07]}  Kc7 {[%clk 0:00:05]} 46. d6+ {[%clk 0:00:07]}  Kc6 {[%clk 0:00:05]} 47. Rc8+ {[%clk 0:00:07]}  Kd5 {[%clk 0:00:04]} 48. d7 {[%clk 0:00:06]}  e3+ {[%clk 0:00:02]} 49. g4 {[%clk 0:00:07]}  h6 {[%clk 0:00:02]} 50. d8=Q+ {[%clk 0:00:06]}  Ke4 {[%clk 0:00:03]} 51. Qxd4+ {[%clk 0:00:06]}  Kxd4 {[%clk 0:00:04]} 52. Bd8 {[%clk 0:00:05]}  e2 {[%clk 0:00:04]} 53. Ba5 {[%clk 0:00:05]}  Ke3 {[%clk 0:00:04]} 54. Re8+ {[%clk 0:00:05]}  Kf2 {[%clk 0:00:04]} 55. Kh5 {[%clk 0:00:05]}  Kf1 {[%clk 0:00:01]} 56. Kg6 {[%clk 0:00:05]}  Bg2 {[%clk 0:00:01]} 57. h4 {[%clk 0:00:05]}  Bf3 {[%clk 0:00:02]} 58. g5 {[%clk 0:00:06]}  hxg5 {[%clk 0:00:03]} 59. hxg5 {[%clk 0:00:07]}  Bc6 {[%clk 0:00:02]} 60. Re7 {[%clk 0:00:06]}  Be4+ {[%clk 0:00:01]} 61. Rxe4 {[%clk 0:00:05]}  e1=Q {[%clk 0:00:02]} 62. Rxe1+ {[%clk 0:00:06]}  Kf2 {[%clk 0:00:02]} 63. Kxg7 {[%clk 0:00:06]} 1-0


[Site "https://www.chess.com"]